bitfinex-derivatives/quotes_BTCF0:USTF0_20260113
["timestamp","ask_amount","ask_price","bid_price","bid_amount"]
[1768285853365,0.13117757,92060.0,92041.0,0.09567451]
[1768285853578,0.02985841,92059.0,92041.0,0.09567451]
[1768285853772,0.02985841,92058.0,92041.0,0.09567451]
[1768285853974,0.02985841,92057.0,92041.0,0.09567451]
[1768285854173,0.09186227,92059.0,92041.0,0.09567451]
[1768285854374,0.12146924,92058.0,92047.0,0.010876]
[1768285854578,0.02960697,92057.0,92047.0,0.010876]
[1768285854768,0.09186227,92058.0,92046.0,0.09788]
[1768285854976,0.09186227,92057.0,92046.0,0.09788]
[1768285855176,0.09186227,92056.0,92046.0,0.09788]
[1768285855576,0.09186227,92056.0,92046.0,0.108757]
[1768285857282,0.09186227,92056.0,92046.0,0.09788]
[1768285858363,0.09186227,92056.0,92046.0,0.108757]
[1768285862475,0.09186227,92073.0,92056.0,0.09567451]
[1768285862775,0.0294167,92072.0,92057.0,0.010875]
[1768285862980,0.0294167,92071.0,92057.0,0.108755]
[1768285863170,0.0294167,92070.0,92057.0,0.108755]
[1768285863366,0.02925425,92069.0,92057.0,0.09788]
[1768285863569,0.09186227,92070.0,92057.0,0.09788]
[1768285863765,0.12111652,92069.0,92057.0,0.09788]
[1768285863971,0.09186227,92069.0,92057.0,0.09788]
[1768285865476,0.18966308,92075.0,92057.0,0.09788]
[1768285865671,0.02924497,92074.0,92058.0,0.010875]
[1768285865871,0.02924497,92073.0,92058.0,0.010875]
[1768285866066,0.18966308,92075.0,92058.0,0.010875]
[1768285866272,0.09179749,92073.0,92058.0,0.010875]
[1768285866472,0.09179749,92072.0,92057.0,0.09788]
[1768285868483,0.09179749,92072.0,92057.0,0.108755]
[1768285868785,0.09179749,92079.0,92060.0,0.10474261]
[1768285871071,0.18966308,92079.0,92060.0,0.10474261]
[1768285871273,0.09179749,92078.0,92060.0,0.10474261]
[1768285871480,0.09179749,92078.0,92060.0,0.010875]
[1768285871687,0.09179749,92077.0,92060.0,0.010875]
[1768285872883,0.18966308,92077.0,92060.0,0.010875]
[1768285873075,0.09179749,92076.0,92060.0,0.010875]
[1768285877181,0.09179749,92076.0,92060.0,0.10446408]
[1768285877689,0.09179749,92076.0,92060.0,0.010875]
[1768285878291,0.09158391,92075.0,92060.0,0.010875]
[1768285878890,0.18342551,92074.0,92060.0,0.010875]
[1768285882097,0.09158391,92072.0,92060.0,0.010875]
[1768285882496,0.09158391,92071.0,92060.0,0.010875]
[1768285882683,0.09158391,92071.0,92057.0,0.09788]
[1768285883689,0.09158391,92071.0,92058.0,0.010875]
[1768285890301,0.09158391,92068.0,92057.0,0.09788]
[1768285891899,0.09158391,92068.0,92057.0,0.108755]
[1768285892100,0.0918416,92073.0,92060.0,0.010875]
[1768285892399,0.18342551,92073.0,92060.0,0.010875]
[1768285892786,0.09158391,92072.0,92060.0,0.010875]
[1768285895400,0.09001211,92071.0,92060.0,0.010875]
[1768285896097,0.09001211,92071.0,92063.0,0.010875]
[1768285897800,0.09908723,92075.0,92063.0,0.010875]
[1768285899698,0.09001211,92074.0,92063.0,0.010875]
[1768285900204,0.09908723,92073.0,92063.0,0.010875]
[1768285900504,0.09908723,92071.0,92063.0,0.010875]
[1768285900703,0.09001211,92070.0,92063.0,0.010875]
[1768285900904,0.18909934,92070.0,92063.0,0.010875]
[1768285901404,0.09908723,92069.0,92063.0,0.010875]
[1768285903602,0.09908723,92069.0,92064.0,0.09788]
[1768285903907,0.09001211,92067.0,92064.0,0.09788]
[1768285906507,0.09908723,92066.0,92064.0,0.09788]
[1768285906710,0.09908723,92087.0,92065.0,0.09470786]
[1768285907008,0.09908723,92085.0,92065.0,0.20332386]
[1768285907209,0.09908723,92085.0,92065.0,0.108616]
[1768285908410,0.09908723,92085.0,92067.0,0.010874]
[1768285908711,0.09908723,92084.0,92067.0,0.010874]
[1768285911015,0.09908723,92084.0,92064.0,0.19465855]
[1768285911210,0.09908723,92079.0,92064.0,0.09788]
[1768285911617,0.09908723,92078.0,92064.0,0.09788]
[1768285912516,0.09908723,92077.0,92065.0,0.010874]
[1768285912708,0.18909934,92077.0,92065.0,0.010874]
[1768285913706,0.09908723,92076.0,92065.0,0.010874]
[1768285914016,0.18909934,92072.0,92066.0,0.09788]
[1768285914214,0.09001211,92071.0,92066.0,0.09788]
[1768285914415,0.09908723,92072.0,92066.0,0.09788]
[1768285914618,0.09204178,92075.0,92066.0,0.09788]
[1768285923920,0.00238903,92088.0,92068.0,0.19148641]
[1768285924124,0.00238903,92088.0,92077.0,0.010873]
[1768285924323,0.310751,92097.0,92077.0,0.010873]
[1768285924515,0.010871,92094.0,92076.0,0.19664228]
[1768285924713,0.09727458,92094.0,92076.0,0.09721069]
[1768285925021,0.08640358,92093.0,92073.0,0.09943159]
[1768285925221,0.08640358,92092.0,92071.0,0.010874]
[1768285926722,0.18115946,92092.0,92071.0,0.010874]
[1768285926922,0.08644726,92091.0,92071.0,0.010874]
[1768285927922,0.08644726,92090.0,92071.0,0.010874]
[1768285931418,0.0867864,92089.0,92071.0,0.010874]
[1768285932418,0.18082048,92082.0,92066.0,0.09788]
[1768285932627,0.0860646,92080.0,92066.0,0.09788]
[1768285934637,0.08735442,92079.0,92066.0,0.09788]
[1768285934828,0.09806547,92067.0,92050.0,0.09132806]
[1768285935123,0.13110673,92080.0,92051.0,0.09788]
[1768285935124,0.010875,92059.0,92051.0,0.09788]
[1768285935430,0.10840129,92059.0,92050.0,0.09788]
[1768285935729,0.09752629,92059.0,92048.0,0.09788]
[1768285936028,0.08719147,92064.0,92048.0,0.09788]
[1768285936230,0.00016295,92063.0,92048.0,0.09788]
[1768285938625,0.00016295,92063.0,92048.0,0.09708]
[1768285939325,0.00016295,92063.0,92050.0,0.13114537]
[1768285941218,0.00016295,92063.0,92049.0,0.010876]
[1768285942329,0.13114537,92060.0,92048.0,0.09708]
[1768285942930,0.00016295,92063.0,92048.0,0.09708]
[1768285943128,0.13114537,92060.0,92048.0,0.09708]
[1768285943634,0.13114537,92060.0,92048.0,0.28632679]
[1768285947735,0.00016295,92063.0,92048.0,0.28632679]
[1768285948235,0.00016295,92063.0,92049.0,0.010876]
[1768285948635,0.09748679,92068.0,92049.0,0.010876]
[1768285949742,0.09748679,92068.0,92048.0,0.28632679]
[1768285950437,0.09748679,92068.0,92049.0,0.18924679]
[1768285951531,0.13114537,92060.0,92048.0,0.09708]
[1768285954941,0.21680008,92060.0,92048.0,0.09708]
[1768285955143,0.13114537,92060.0,92048.0,0.09708]
[1768285964045,0.13114537,92060.0,92040.0,0.13114537]
[1768285964046,0.08352896,92055.0,92032.0,0.09730295]
[1768285964250,0.08349138,92047.0,92033.0,0.5462]
[1768285964450,0.13114537,92042.0,92033.0,0.5462]
[1768285964747,0.02211521,92042.0,92033.0,0.5462]
[1768285965550,0.08349138,92045.0,92033.0,0.5462]
[1768285965756,0.09991466,92048.0,92033.0,0.5462]
[1768285967051,0.08349138,92049.0,92033.0,0.5462]
[1768285969957,0.13114537,92050.0,92034.0,0.010878]
[1768285970157,0.13114537,92050.0,92034.0,0.19844437]
[1768285973056,0.13114537,92050.0,92036.0,0.010878]
[1768285975154,0.13114537,92050.0,92038.0,0.18756637]
[1768285975355,0.13114537,92060.0,92041.0,0.18756637]
[1768285975560,0.09788,92059.0,92042.0,0.18756637]
[1768285976058,0.09788,92059.0,92043.0,0.18756637]
[1768285980456,0.00016295,92063.0,92050.0,0.18756637]
[1768285980657,0.00016295,92063.0,92040.0,0.13114537]
[1768285980658,0.09788,92075.0,92055.0,0.18756637]
[1768285980861,0.09788,92075.0,92058.0,0.18756637]
[1768285981062,0.13114537,92070.0,92058.0,0.18756637]
[1768285981262,0.13114537,92070.0,92058.0,0.09730295]
[1768285981462,0.13114537,92070.0,92053.0,0.18756637]
[1768285982062,0.13114537,92070.0,92054.0,0.18756637]
[1768285983260,0.22011467,92070.0,92052.0,0.00016295]
[1768285983457,0.07793235,92060.0,92041.0,0.09788]
[1768285983664,0.13114537,92051.0,92041.0,0.09788]
[1768285984165,0.13114537,92051.0,92041.0,0.07406633]
[1768285984757,0.13114537,92051.0,92034.0,0.09788]
[1768285986166,0.00016295,92052.0,92035.0,0.20029769]
[1768285986363,0.00016295,92052.0,92037.0,0.010878]
[1768285986564,0.00016295,92052.0,92039.0,0.18941969]
[1768285986964,0.00016295,92052.0,92040.0,0.18941969]
[1768285987366,0.08168897,92048.0,92034.0,0.09788]
[1768285987573,0.08168897,92043.0,92027.0,0.09788]
[1768285987873,0.13114537,92040.0,92027.0,0.09788]
[1768285988372,0.08168897,92043.0,92027.0,0.09788]
[1768285988577,0.09432372,92044.0,92027.0,0.09788]
[1768285990868,0.21502628,92050.0,92031.0,0.18941969]
[1768285991170,0.13114537,92050.0,92032.0,0.18941969]
[1768285991472,0.00016295,92052.0,92034.0,0.09369346]
[1768285991676,0.09804295,92052.0,92040.0,0.13114537]
[1768285992278,0.09804295,92052.0,92039.0,0.09572623]
[1768285992777,0.09804295,92052.0,92038.0,0.09369346]
[1768285993369,0.00016295,92052.0,92045.0,0.00543216]
[1768285993574,0.13114537,92060.0,92047.0,0.18941969]
[1768285993976,0.08336668,92065.0,92047.0,0.09369346]
[1768285994174,0.13114537,92060.0,92047.0,0.09369346]
[1768285994376,0.13114537,92060.0,92045.0,0.00543216]
[1768285997583,0.21555194,92060.0,92045.0,0.00543216]
[1768285997782,0.21555194,92060.0,92040.0,0.13606947]
[1768285997982,0.21555194,92060.0,92041.0,0.09471452]
[1768285999480,0.21485194,92060.0,92041.0,0.09471452]
[1768286000485,0.21485194,92060.0,92042.0,0.010877]
[1768286000882,0.13044537,92060.0,92046.0,0.10559152]
[1768286001276,0.09788,92060.0,92046.0,0.10559152]
[1768286001879,0.09788,92060.0,92046.0,0.010877]
[1768286005589,0.09085568,92064.0,92045.0,0.09471452]
[1768286005892,0.1764131,92061.0,92043.0,0.010877]
[1768286006694,0.1764131,92061.0,92043.0,0.10559152]
[1768286010600,0.1764131,92061.0,92043.0,0.010877]
[1768286013200,0.08821189,92060.0,92043.0,0.010877]
[1768286013699,0.09085568,92059.0,92043.0,0.010877]
[1768286013896,0.08821189,92052.0,92037.0,0.09788]
[1768286014099,0.00543098,92065.0,92037.0,0.09788]
[1768286014100,0.09908789,92050.0,92037.0,0.09788]
[1768286014295,0.17906757,92041.0,92029.0,0.09788]
[1768286014502,0.09070032,92038.0,92029.0,0.09788]
[1768286015290,0.09070032,92043.0,92029.0,0.09788]
[1768286015497,0.09070032,92043.0,92028.0,0.01326959]
[1768286020997,0.1640465,92038.0,92028.0,0.01326959]
[1768286021201,0.15981754,92035.0,92025.0,0.00543334]
[1768286021402,0.06368388,92031.0,92016.0,0.01088]
[1768286021598,0.1543842,92030.0,92015.0,0.09788]
[1768286021906,0.06368388,92025.0,92011.0,0.010881]
[1768286023299,0.06251422,92028.0,92011.0,0.010881]
[1768286023500,0.06251422,92028.0,92014.0,0.01088]
[1768286023900,0.15321454,92028.0,92014.0,0.01088]
[1768286026207,0.14249757,92041.0,92021.0,0.18591338]
[1768286026400,0.09788,92044.0,92028.0,0.10346625]
[1768286026605,0.09788,92044.0,92028.0,0.010879]
[1768286028605,0.0517837,92040.0,92028.0,0.010879]
[1768286028795,0.09070032,92039.0,92019.0,0.1088]
[1768286028999,0.09070032,92039.0,92015.0,0.01088]
[1768286029000,0.14248402,92029.0,92015.0,0.01088]
[1768286029505,0.13520604,92025.0,92012.0,0.09792]
[1768286029808,0.04450572,92024.0,92011.0,0.010881]
[1768286031507,0.04450572,92024.0,92007.0,0.010881]
[1768286031701,0.13520604,92024.0,92007.0,0.010881]
[1768286035606,0.09070032,92024.0,92010.0,0.010881]
[1768286035813,0.04748936,92027.0,92006.0,0.09258725]
[1768286036006,0.09070032,92029.0,92019.0,0.01088]
[1768286036311,0.09792,92031.0,92015.0,0.01088]
[1768286036712,0.04748936,92031.0,92015.0,0.01088]
[1768286036912,0.14540936,92031.0,92015.0,0.01088]
[1768286037214,0.23610968,92031.0,92015.0,0.01088]
[1768286038006,0.09070032,92036.0,92023.0,0.010879]
[1768286038210,0.09792,92037.0,92023.0,0.010879]
[1768286039217,0.09086327,92042.0,92023.0,0.010879]
[1768286039218,0.09086327,92042.0,92023.0,0.10346625]
[1768286039405,0.00016295,92042.0,92024.0,0.09258725]
[1768286039726,0.05320085,92042.0,92024.0,0.09258725]
[1768286039900,0.05320085,92042.0,92025.0,0.010879]
[1768286042210,0.14390117,92042.0,92025.0,0.010879]
[1768286042607,0.09086327,92042.0,92025.0,0.010879]
[1768286042812,0.09792,92048.0,92028.0,0.18591338]
[1768286043008,0.010876,92051.0,92030.0,0.18591338]
[1768286043213,0.09792,92050.0,92031.0,0.18591338]
[1768286043514,0.09792,92050.0,92032.0,0.09258725]
[1768286045117,0.09792,92050.0,92030.0,0.010879]
[1768286045311,0.09168574,92048.0,92029.0,0.00016295]
[1768286045511,0.14860114,92044.0,92029.0,0.00016295]
[1768286045713,0.0569154,92043.0,92029.0,0.00016295]
[1768286046321,0.14860114,92043.0,92029.0,0.00016295]
[1768286047725,0.05685624,92042.0,92029.0,0.00016295]
[1768286047915,0.05685624,92040.0,92029.0,0.00016295]
[1768286048112,0.14854198,92040.0,92029.0,0.00016295]
[1768286048512,0.14854198,92039.0,92029.0,0.00016295]
[1768286048717,0.05685624,92037.0,92029.0,0.00016295]
[1768286050123,0.09168574,92038.0,92029.0,0.00016295]
[1768286050423,0.0572492,92041.0,92029.0,0.00016295]
[1768286050424,0.14893494,92041.0,92029.0,0.00016295]
[1768286057125,0.0568332,92040.0,92029.0,0.00016295]
[1768286058322,0.14775462,92040.0,92029.0,0.00016295]
[1768286058724,0.14773329,92038.0,92029.0,0.00016295]
[1768286059329,0.14588557,92037.0,92029.0,0.00016295]
[1768286059530,0.09092142,92037.0,92029.0,0.00016295]
[1768286059827,0.09082142,92037.0,92029.0,0.00016295]
[1768286061221,0.09082142,92037.0,92030.0,0.010879]
[1768286061627,0.05496415,92040.0,92030.0,0.010879]
[1768286062123,0.14588557,92040.0,92030.0,0.010879]
[1768286062420,0.05517127,92039.0,92029.0,0.00016295]
[1768286063032,0.14609269,92039.0,92029.0,0.00016295]
[1768286065327,0.05192498,92038.0,92029.0,0.00016295]
[1768286069137,0.05192498,92038.0,92029.0,0.01104195]
[1768286070439,0.05192498,92038.0,92029.0,0.010879]
[1768286070639,0.10196337,92022.0,92007.0,0.09792]
[1768286070842,0.13121027,92020.0,92007.0,0.09792]
[1768286071044,0.10196337,92022.0,92007.0,0.108801]
[1768286071235,0.10196337,92022.0,92010.0,0.13121027]
[1768286071635,0.10196337,92022.0,92011.0,0.010881]
[1768286071839,0.00016295,92025.0,92011.0,0.010881]
[1768286073435,0.00016295,92025.0,92014.0,0.01088]
[1768286088869,6.295e-05,92025.0,92014.0,0.01088]
[1768286089070,6.295e-05,92025.0,92012.0,0.09476194]
[1768286089669,6.295e-05,92025.0,92013.0,0.010881]
[1768286089970,0.13121027,92030.0,92016.0,0.09476194]
[1768286093362,0.13121027,92030.0,92015.0,0.10564194]
[1768286095267,0.09069735,92034.0,92015.0,0.10564194]
[1768286095573,0.010878,92038.0,92021.0,0.09476194]
[1768286096166,0.13121027,92040.0,92022.0,0.09041279]
[1768286096364,0.09792,92043.0,92024.0,0.09476194]
[1768286096570,0.09792,92043.0,92023.0,0.010879]
[1768286096571,0.00543216,92045.0,92026.0,0.18517473]
[1768286096966,0.13121027,92040.0,92027.0,0.09476194]
[1768286098070,0.13121027,92040.0,92026.0,0.09041279]
[1768286098273,0.13121027,92040.0,92024.0,0.09476194]
[1768286103472,0.14208727,92040.0,92024.0,0.09476194]
[1768286103776,0.13121027,92040.0,92024.0,0.09476194]
[1768286103975,0.00543216,92045.0,92031.0,0.09476194]
[1768286104166,0.010875,92064.0,92040.0,0.19605173]
[1768286104372,0.0279635,92063.0,92050.0,0.13121027]
[1768286104683,0.00543098,92065.0,92049.0,0.09476194]
[1768286105086,0.00543098,92065.0,92050.0,0.13121027]
[1768286105380,0.13121027,92060.0,92047.0,0.09511619]
[1768286105978,0.13121027,92060.0,92046.0,0.09041279]
[1768286106574,0.13121027,92060.0,92043.0,0.10599319]
[1768286109483,0.12011022,92065.0,92047.0,0.010877]
[1768286109682,0.13121027,92060.0,92047.0,0.10599319]
[1768286110584,0.12011022,92065.0,92047.0,0.10599319]
[1768286112186,0.12011022,92065.0,92047.0,0.010877]
[1768286112387,0.11411235,92064.0,92047.0,0.010877]
[1768286112889,0.13121027,92060.0,92047.0,0.010877]
[1768286114387,0.0250687,92063.0,92047.0,0.010877]
[1768286114883,0.0888583,92064.0,92047.0,0.010877]
[1768286116489,0.0888583,92064.0,92047.0,0.10671784]
[1768286116693,0.00543098,92065.0,92047.0,0.10671784]
[1768286116888,0.2208099,92070.0,92051.0,0.09584084]
[1768286117482,0.13121027,92070.0,92052.0,0.10671684]
[1768286117785,0.09788,92074.0,92055.0,0.010876]
[1768286117786,0.12236984,92074.0,92055.0,0.010876]
[1768286117978,0.13121027,92070.0,92055.0,0.010876]
[1768286118892,0.12236984,92074.0,92055.0,0.010876]
[1768286119094,0.11408947,92073.0,92055.0,0.010876]
[1768286119294,0.13121027,92070.0,92055.0,0.010876]
[1768286120994,0.11485774,92072.0,92055.0,0.010876]
[1768286121197,0.13121027,92070.0,92055.0,0.010876]
[1768286121391,0.11485774,92072.0,92055.0,0.010876]
[1768286121898,0.11472082,92084.0,92062.0,0.09584084]
[1768286122105,0.11472082,92084.0,92063.0,0.09788]
[1768286122297,0.02512119,92082.0,92063.0,0.09788]
[1768286122495,0.11472082,92081.0,92063.0,0.09788]
[1768286125494,0.11370144,92079.0,92063.0,0.09788]
[1768286133704,0.08959963,92079.0,92063.0,0.09788]
[1768286133905,0.03399997,92084.0,92064.0,0.09584084]
[1768286134105,0.09788,92089.0,92063.0,0.09788]
[1768286134106,0.1127276,92074.0,92063.0,0.09788]
[1768286135206,0.02313165,92073.0,92063.0,0.09788]
[1768286135507,0.010874,92072.0,92062.0,9.5e-07]
[1768286136009,0.1063577,92061.0,92048.0,0.09788]
[1768286136910,0.08322605,92061.0,92048.0,0.09788]
[1768286141711,0.08322605,92067.0,92050.0,0.010876]
[1768286144006,9.5e-07,92078.0,92071.0,0.010874]
[1768286144212,0.00238903,92088.0,92076.0,0.010873]
[1768286148323,0.00238903,92088.0,92073.0,0.09977602]
[1768286148516,0.00238903,92088.0,92074.0,0.010873]
[1768286149012,0.00238903,92088.0,92075.0,0.09961307]
[1768286149799,0.00238903,92088.0,92074.0,0.010873]
[1768286152605,0.00238903,92088.0,92074.0,0.11048607]
[1768286159014,0.00238903,92088.0,92074.0,0.11038607]
[1768286159216,0.00238903,92088.0,92074.0,0.19573367]
[1768286159522,0.00238903,92088.0,92075.0,0.09961307]
[1768286162118,0.00238903,92088.0,92075.0,0.18496067]
[1768286162324,0.010871,92097.0,92076.0,0.18496067]
[1768286162520,0.010871,92097.0,92077.0,0.09961307]
[1768286163220,0.010871,92097.0,92077.0,0.18496067]
[1768286163834,0.010871,92097.0,92078.0,0.09961307]
[1768286165834,0.09788,92102.0,92080.0,0.09237232]
[1768286165835,0.01087,92101.0,92080.0,0.09237232]
[1768286166040,0.01087,92101.0,92081.0,0.08857799]
[1768286166233,0.01087,92101.0,92082.0,0.09237232]
[1768286166435,0.01087,92101.0,92084.0,0.09237232]
[1768286168643,0.01087,92101.0,92083.0,0.08857799]
[1768286169640,0.01087,92101.0,92084.0,0.09237232]
[1768286172042,0.01087,92101.0,92085.0,0.09237232]
[1768286172245,0.010869,92109.0,92089.0,0.09237232]
[1768286172441,0.18555384,92116.0,92097.0,0.09237232]
[1768286172639,0.010869,92111.0,92097.0,0.09237232]
[1768286173031,0.010869,92111.0,92097.0,0.09253517]
[1768286173230,0.010869,92108.0,92097.0,0.00016285]
[1768286177247,0.010869,92112.0,92097.0,0.00016285]
[1768286182948,0.010869,92108.0,92097.0,0.00016285]
[1768286184456,0.13102843,92110.0,92097.0,0.00016285]
[1768286184656,0.010869,92109.0,92097.0,0.00016285]
[1768286184957,0.01087,92106.0,92097.0,0.00016285]
[1768286186254,0.10624929,92109.0,92097.0,0.00016285]
[1768286193968,0.09784,92116.0,92099.0,0.0915324]
[1768286194262,0.09784,92116.0,92101.0,0.0915324]
[1768286194467,0.08995083,92110.0,92097.0,0.00016285]
[1768286194664,0.08978798,92102.0,92093.0,0.09784]
[1768286195063,0.08978798,92102.0,92092.0,0.09784]
[1768286195669,0.08978798,92102.0,92091.0,0.09784]
[1768286196171,0.00878355,92106.0,92091.0,0.09784]
[1768286200971,0.08073509,92107.0,92091.0,0.09784]
[1768286202268,0.08910042,92107.0,92091.0,0.09784]
[1768286207381,0.13102843,92101.0,92091.0,0.09784]
[1768286217589,0.0885945,92099.0,92078.0,0.0925849]
[1768286217795,0.13102843,92088.0,92073.0,0.09784]
[1768286218092,0.00785941,92089.0,92072.0,0.09784]
[1768286218287,0.13102843,92090.0,92072.0,0.09784]
[1768286218593,0.00016285,92090.0,92076.0,0.18327982]
[1768286218784,0.0885945,92099.0,92078.0,0.1034579]
[1768286220894,0.13102843,92100.0,92089.0,0.0925849]
[1768286221494,0.10871,92106.0,92089.0,0.0925849]
[1768286221686,0.13102843,92100.0,92089.0,0.0925849]
[1768286222795,0.13102843,92100.0,92088.0,0.07998477]
[1768286223494,0.13102843,92100.0,92088.0,0.00016285]
[1768286224388,0.17857509,92106.0,92088.0,0.00016285]
[1768286224589,0.13102843,92100.0,92088.0,0.00016285]
[1768286226794,0.07835119,92097.0,92069.0,0.09912855]
[1768286227003,0.13102843,92090.0,92070.0,0.32799698]
[1768286227597,0.13102843,92090.0,92071.0,0.09912855]
[1768286229403,0.08922219,92093.0,92071.0,0.09912855]
[1768286229589,0.13102843,92090.0,92071.0,0.09912855]
[1768286230904,0.13102843,92090.0,92072.0,0.09912855]
[1768286231198,0.13102843,92090.0,92072.0,0.1793392]
[1768286231405,0.13102843,92090.0,92073.0,0.09912855]
[1768286232707,0.13102843,92090.0,92074.0,0.09912855]
[1768286233011,0.13102843,92090.0,92075.0,0.11000155]
[1768286233506,0.13102843,92090.0,92076.0,0.09912855]
[1768286238506,0.13102843,92090.0,92075.0,0.010873]
[1768286238705,0.13102843,92090.0,92075.0,0.10786582]
[1768286241001,0.13102843,92090.0,92075.0,0.09699282]
[1768286245319,0.07907395,92094.0,92075.0,0.09699282]
[1768286245898,0.00016285,92103.0,92078.0,0.09699282]
[1768286245899,0.07907395,92102.0,92078.0,0.09699282]
[1768286246107,0.07907395,92102.0,92081.0,0.17338777]
[1768286246301,0.07907395,92102.0,92070.0,0.2289191]
[1768286246302,0.07907395,92102.0,92083.0,0.09699282]
[1768286246502,0.09800285,92103.0,92085.0,0.09699282]
[1768286247509,0.1770768,92103.0,92084.0,0.07639495]
[1768286247897,0.07907395,92102.0,92082.0,0.010872]
[1768286248099,0.07907395,92102.0,92082.0,0.10786482]
[1768286253315,0.08994395,92102.0,92076.0,0.010873]
[1768286253519,0.08994395,92102.0,92077.0,0.09784]
[1768286254015,0.07907395,92098.0,92077.0,0.09784]
[1768286254216,0.07907395,92098.0,92078.0,0.09784]
[1768286255218,0.00016285,92103.0,92081.0,0.09409974]
[1768286255416,0.00016285,92103.0,92086.0,0.09409974]
[1768286256516,0.00016285,92103.0,92088.0,0.09409974]
[1768286262524,0.00016285,92103.0,92089.0,0.010872]
[1768286262728,0.0777457,92123.0,92105.0,0.09409974]
[1768286263026,0.0777457,92143.0,92121.0,0.09409974]
[1768286263325,0.0777457,92139.0,92116.0,0.19193974]
[1768286263529,0.0886117,92138.0,92116.0,0.09784]
[1768286263717,0.0777457,92138.0,92116.0,0.09784]
[1768286264025,0.0777457,92138.0,92117.0,0.09409974]
[1768286264727,0.0777457,92138.0,92116.0,0.09784]
[1768286264728,1.09784,92144.0,92123.0,0.09409974]
[1768286264914,1.09784,92144.0,92124.0,0.07771395]
[1768286265115,1.09784,92144.0,92126.0,0.07771395]
[1768286265116,1.0,92144.0,92126.0,0.07771395]
[1768286265313,0.01375959,92144.0,92134.0,0.09409974]
[1768286265513,0.01375959,92144.0,92133.0,0.08857995]
[1768286265514,0.108703,92162.0,92140.0,0.07771395]
[1768286265718,0.108703,92162.0,92142.0,0.17181369]
[1768286266211,0.09784,92162.0,92142.0,0.17181369]
[1768286266526,0.01295776,92146.0,92124.0,0.09409974]
[1768286266724,0.01295776,92146.0,92126.0,0.09409974]
[1768286266911,0.010865,92148.0,92129.0,0.09409974]
[1768286267110,0.010865,92148.0,92129.0,0.17181369]
[1768286267314,0.010865,92148.0,92130.0,0.17181369]
[1768286267521,0.010865,92144.0,92130.0,0.17181369]
[1768286267719,0.010865,92144.0,92131.0,0.09784]
[1768286267915,0.010865,92144.0,92131.0,0.09409974]
[1768286268114,0.010865,92144.0,92131.0,0.19193974]
[1768286268316,0.010865,92144.0,92114.0,0.17181369]
[1768286268516,0.010865,92144.0,92118.0,0.17181369]
[1768286268727,0.010865,92144.0,92119.0,0.17181369]
[1768286268925,0.010865,92144.0,92122.0,0.17181369]
[1768286269129,0.00016285,92140.0,92124.0,0.17181369]
[1768286269423,0.00016285,92140.0,92127.0,0.17181369]
[1768286269614,0.00016285,92140.0,92128.0,0.19193974]
[1768286269813,0.00016285,92140.0,92129.0,0.17181369]
[1768286270013,0.010865,92149.0,92133.0,0.09409974]
[1768286270210,0.010865,92149.0,92134.0,0.09409974]
[1768286270421,0.010865,92149.0,92134.0,0.17181369]
[1768286270630,0.010865,92145.0,92135.0,0.09409974]
[1768286271921,0.010864,92150.0,92135.0,0.17181369]
[1768286272111,0.010864,92150.0,92136.0,0.09409974]
[1768286272309,0.010864,92150.0,92137.0,0.09409974]
[1768286279133,0.010864,92150.0,92138.0,0.09409974]
[1768286281833,0.0777457,92142.0,92119.0,0.09409974]
[1768286282029,0.010866,92137.0,92120.0,0.0978]
[1768286282433,0.010866,92137.0,92120.0,0.19189974]
[1768286282733,0.010866,92137.0,92121.0,0.09409974]
[1768286282934,0.010865,92141.0,92122.0,0.07771395]
[1768286283231,0.010865,92141.0,92123.0,0.09409974]
[1768286283430,0.010865,92141.0,92126.0,0.07771395]
[1768286283617,0.1310791,92140.0,92127.0,0.09409974]
[1768286283931,0.010865,92141.0,92124.0,0.09409974]
[1768286284530,0.10046828,92144.0,92124.0,0.09409974]
[1768286284725,0.10046828,92144.0,92120.0,0.17551395]
[1768286284726,0.010866,92138.0,92120.0,0.17551395]
[1768286284919,0.010866,92138.0,92120.0,0.26924318]
[1768286285120,0.09012182,92144.0,92121.0,0.0978]
[1768286285121,0.010866,92135.0,92121.0,0.0978]
[1768286285732,0.010866,92135.0,92120.0,0.17144318]
[1768286286522,0.1419461,92130.0,92118.0,0.0978]
[1768286286721,0.1419461,92130.0,92093.0,0.09782862]
[1768286286722,0.09770691,92129.0,92106.0,0.0978]
[1768286286929,0.010868,92122.0,92107.0,0.08828974]
[1768286287521,0.010868,92119.0,92104.0,0.0978]
[1768286287845,0.010868,92123.0,92103.0,0.0978]
[1768286288523,0.010868,92123.0,92106.0,0.09372923]
[1768286289135,0.00544056,92123.0,92107.0,0.09372923]
[1768286289638,0.09012182,92127.0,92107.0,0.09372923]
[1768286289939,0.09722112,92128.0,92110.0,0.09372923]
[1768286290139,0.09722112,92128.0,92109.0,0.08828974]
[1768286290140,0.010867,92129.0,92111.0,0.18201897]
[1768286290330,0.010867,92129.0,92113.0,0.09372923]
[1768286290531,0.010867,92129.0,92114.0,0.08828974]
[1768286290733,0.010867,92129.0,92115.0,0.09372923]
[1768286291131,0.10742054,92129.0,92108.0,0.09372923]
[1768286291335,0.10742054,92129.0,92109.0,0.09372923]
[1768286291531,0.09881454,92126.0,92108.0,0.08828974]
[1768286291730,0.10968154,92125.0,92106.0,0.09372923]
[1768286293035,0.10968154,92125.0,92103.0,0.18608974]
[1768286293036,0.010868,92122.0,92103.0,0.27981897]
[1768286294534,0.010868,92122.0,92105.0,0.10037911]
[1768286294736,0.010868,92122.0,92105.0,0.18747351]
[1768286294940,0.010868,92122.0,92106.0,0.09495049]
[1768286295142,0.010868,92122.0,92106.0,0.18204489]
[1768286295747,0.010868,92122.0,92107.0,0.09495049]
[1768286299042,0.108667,92126.0,92107.0,0.09495049]
[1768286299250,0.108667,92126.0,92109.0,0.0870944]
[1768286299641,0.108667,92126.0,92110.0,0.09495049]
[1768286299952,0.108667,92126.0,92111.0,0.09495049]
[1768286300254,0.010868,92123.0,92109.0,0.09495049]
[1768286300848,0.010868,92123.0,92105.0,0.00542862]
[1768286300849,0.010868,92120.0,92105.0,0.00542862]
[1768286301152,0.3192536,92120.0,92105.0,0.00542862]
[1768286301347,0.1310791,92120.0,92105.0,0.00542862]
[1768286301535,0.1310791,92120.0,92105.0,0.10037911]
[1768286301740,0.010867,92124.0,92107.0,0.09495049]
[1768286301945,0.010867,92124.0,92108.0,0.0870944]
[1768286302148,0.010867,92124.0,92109.0,0.18204489]
[1768286302852,0.010868,92121.0,92109.0,0.18204489]
[1768286304547,0.010868,92121.0,92109.0,0.0870944]
[1768286305460,0.13101893,92119.0,92109.0,0.0870944]